fUSD/lending_fUSD_20250828
["ID","MTS","AMOUNT","RATE_DAILY","PERIOD"]
[381847588,1756369839046,-151.0,0.00018273,2]
[381847590,1756369839057,-718.39,0.00018273,2]
[381847592,1756369839066,-151.0,0.00018273,2]
[381847594,1756369839076,-400.0,0.00018273,2]
[381847596,1756369839087,-151.0,0.00018273,2]
[381847598,1756369839097,-638.71,0.00018273,2]
[381847602,1756369839107,-400.0,0.00018273,2]
[381847604,1756369839117,-400.0,0.00018273,2]
[381847607,1756369839127,-400.0,0.00018273,2]
[381847609,1756369839137,-400.0,0.00018273,2]
[381847611,1756369839147,-215.41,0.00018273,2]
[381847613,1756369839160,-400.0,0.00018273,2]
[381847615,1756369839170,-400.0,0.00018273,2]
[381847617,1756369839180,-461.94,0.00018273,2]
[381847618,1756369839189,-483.22,0.00018273,2]
[381847621,1756369839199,-434.29,0.00018273,2]
[381847623,1756369839209,-400.0,0.00018273,2]
[381847625,1756369839219,-400.0,0.00018273,2]
[381847626,1756369839230,-400.0,0.00018273,2]
[381847629,1756369839241,-400.0,0.00018273,2]
[381847631,1756369839250,-400.0,0.00018273,2]
[381847633,1756369839260,-400.0,0.00018273,2]
[381847635,1756369839270,-2341.56,0.00018273,2]
[381847637,1756369839280,-400.0,0.00018273,2]
[381847639,1756369839291,-400.0,0.00018273,2]
[381847641,1756369839301,-400.0,0.00018273,2]
[381847643,1756369839311,-400.0,0.00018273,2]
[381847645,1756369839321,-1134.51,0.00018273,2]
[381847647,1756369839331,-266.72,0.00018397,2]
[381847649,1756369839341,-1351.0,0.00018402,2]
[381847651,1756369839352,-505.0,0.00018537,2]
[381847653,1756369839362,-150.0,0.00018537,2]
[381847655,1756369839372,-275.25933414,0.00018537,2]
[381847657,1756369839382,-150.0,0.00018537,2]
[381847659,1756369839392,-150.0,0.00018537,2]
[381847661,1756369839402,-159.81,0.00018547,2]
[381847663,1756369839413,-400.0,0.00018547,2]
[381847665,1756369839423,-400.0,0.00018547,2]
[381847667,1756369839433,-570.96,0.00018547,2]
[381847669,1756369839443,-400.0,0.00018547,2]
[381847671,1756369839453,-400.0,0.00018547,2]
[381847673,1756369839463,-400.0,0.00018547,2]
[381847675,1756369839473,-400.0,0.00018547,2]
[381847677,1756369839482,-400.0,0.00018547,2]
[381847680,1756369839493,-400.0,0.00018547,2]
[381847682,1756369839503,-1077.92,0.00018547,2]
[381847684,1756369839513,-400.0,0.00018547,2]
[381847686,1756369839523,-400.82601308,0.00018547,2]
[381847688,1756369839533,-400.0,0.00018547,2]
[381847690,1756369839543,-400.0,0.00018547,2]
[381847692,1756369839553,-400.0,0.00018547,2]
[381847694,1756369839562,-400.0,0.00018547,2]
[381847696,1756369839572,-400.0,0.00018547,2]
[381847698,1756369839582,-510.62,0.00018547,2]
[381847700,1756369839592,-400.0,0.00018547,2]
[381847702,1756369839602,-400.0,0.00018547,2]
[381847704,1756369839612,-400.0,0.00018547,2]
[381847706,1756369839622,-280.46865455,0.00018547,2]
[381847708,1756369839631,-718.39,0.00018547,2]
[381847710,1756369839641,-400.0,0.00018547,2]
[381847712,1756369839650,-638.71,0.00018547,2]
[381847714,1756369839660,-400.0,0.00018547,2]
[381847716,1756369839669,-400.0,0.00018547,2]
[381847718,1756369839679,-400.0,0.00018547,2]
[381847720,1756369839690,-400.0,0.00018547,2]
[381847722,1756369839701,-400.0,0.00018547,2]
[381847724,1756369839711,-400.0,0.00018547,2]
[381847726,1756369839721,-483.22,0.00018547,2]
[381847728,1756369839731,-434.29,0.00018547,2]
[381847730,1756369839741,-400.0,0.00018547,2]
[381847732,1756369839751,-185.2,0.00018547,2]
[381847734,1756369839760,-400.0,0.00018547,2]
[381847736,1756369839770,-400.0,0.00018547,2]
[381847738,1756369839780,-477.73,0.00018547,2]
[381847740,1756369839790,-400.0,0.00018547,2]
[381847742,1756369839800,-2341.56,0.00018547,2]
[381847744,1756369839810,-400.0,0.00018547,2]
[381847746,1756369839819,-400.0,0.00018547,2]
[381847748,1756369839829,-399.96,0.00018547,2]
[381847750,1756369839839,-400.0,0.00018547,2]
[381847752,1756369839849,-1134.51,0.00018547,2]
[381847754,1756369839859,-500.0,0.0001863,2]
[381847756,1756369839869,-2574.93021261,0.00018667,2]
[381847758,1756369839879,-500.0,0.00018675,2]
[381847761,1756369839889,-1000.0,0.00018721,2]
[381847762,1756369839898,-1000.0,0.00018721,2]
[381847765,1756369839908,-150.84,0.000188,2]
[381847767,1756369839919,-150.84,0.000188,2]
[381847769,1756369839929,-150.84,0.000188,2]
[381847771,1756369839938,-150.84,0.000188,2]
[381847774,1756369839948,-150.84,0.000188,2]
[381847776,1756369839958,-150.84,0.000188,2]
[381847778,1756369839967,-150.84,0.000188,2]
[381847780,1756369839977,-150.84,0.000188,2]
[381847817,1756369840329,-150.84,0.000188,2]
[381847820,1756369840349,-150.84,0.000188,2]
[381847822,1756369840362,-150.84,0.000188,2]
[381847824,1756369840371,-150.84,0.000188,2]
[381847826,1756369840381,-150.84,0.000188,2]
[381847828,1756369840391,-150.84,0.000188,2]
[381847830,1756369840400,-150.84,0.000188,2]
[381847832,1756369840409,-150.84,0.000188,2]
[381847834,1756369840419,-150.84,0.000188,2]
[381847836,1756369840429,-150.84,0.000188,2]
[381847838,1756369840439,-150.84,0.000188,2]
[381847840,1756369840450,-150.84,0.000188,2]
[381847842,1756369840459,-150.84,0.000188,2]
[381847844,1756369840468,-150.84,0.000188,2]
[381847846,1756369840478,-150.84,0.000188,2]
[381847848,1756369840487,-150.84,0.000188,2]
[381847850,1756369840496,-150.84,0.000188,2]
[381847852,1756369840506,-150.84,0.000188,2]
[381847854,1756369840516,-150.84,0.000188,2]
[381847856,1756369840525,-150.84,0.000188,2]
[381847858,1756369840535,-150.84,0.000188,2]
[381847860,1756369840544,-150.84,0.000188,2]
[381847862,1756369840553,-150.84,0.000188,2]
[381847864,1756369840563,-150.84,0.000188,2]
[381847866,1756369840573,-505.0,0.00018811,2]
[381847868,1756369840582,-150.0,0.00018811,2]
[381847870,1756369840591,-150.0,0.00018811,2]
[381847872,1756369840601,-282.42877466,0.00018811,2]
[381847874,1756369840611,-400.0,0.00018821,2]
[381847876,1756369840620,-400.0,0.00018821,2]
[381847878,1756369840630,-570.96,0.00018821,2]
[381847880,1756369840639,-400.0,0.00018821,2]
[381847882,1756369840649,-400.0,0.00018821,2]
[381847884,1756369840658,-400.0,0.00018821,2]
[381847886,1756369840667,-207.75152454,0.00018821,2]
[381847888,1756369840676,-400.0,0.00018821,2]
[381847890,1756369840685,-1077.92,0.00018821,2]
[381847892,1756369840694,-400.0,0.00018821,2]
[381847894,1756369840704,-400.0,0.00018821,2]
[381847896,1756369840713,-400.0,0.00018821,2]
[381847898,1756369840723,-400.0,0.00018821,2]
[381847900,1756369840732,-400.0,0.00018821,2]
[381847902,1756369840741,-400.0,0.00018821,2]
[381847904,1756369840750,-510.62,0.00018821,2]
[381847906,1756369840759,-400.0,0.00018821,2]
[381847908,1756369840768,-400.0,0.00018821,2]
[381847910,1756369840778,-400.0,0.00018821,2]
[381847912,1756369840787,-718.39,0.00018821,2]
[381847914,1756369840796,-400.0,0.00018821,2]
[381847916,1756369840805,-638.71,0.00018821,2]
[381847918,1756369840817,-400.0,0.00018821,2]
[381847920,1756369840826,-400.0,0.00018821,2]
[381847922,1756369840835,-400.0,0.00018821,2]
[381847924,1756369840844,-400.0,0.00018821,2]
[381847926,1756369840853,-400.0,0.00018821,2]
[381847928,1756369840863,-400.0,0.00018821,2]
[381847930,1756369840872,-483.22,0.00018821,2]
[381847932,1756369840881,-400.0,0.00018821,2]
[381847934,1756369840892,-434.29,0.00018821,2]
[381847936,1756369840902,-400.0,0.00018821,2]
[381847938,1756369840911,-400.0,0.00018821,2]
[381847940,1756369840920,-400.0,0.00018821,2]
[381847942,1756369840929,-2341.56,0.00018821,2]
[381847944,1756369840939,-400.0,0.00018821,2]
[381847946,1756369840948,-400.0,0.00018821,2]
[381847948,1756369840957,-400.0,0.00018821,2]
[381847950,1756369840966,-1134.51,0.00018821,2]
[381847952,1756369840975,-150.0,0.00018841,2]
[381847954,1756369840984,-803.57199079,0.00018842,2]
[381847956,1756369840993,-1024.16038042,0.00018843,2]
[381847958,1756369841003,-1244.74877004,0.00018844,2]
[381847960,1756369841012,-1465.33715967,0.00018845,2]
[381847962,1756369841021,-1685.9255493,0.00018846,2]
[381847964,1756369841030,-1906.51393893,0.00018847,2]
[381847966,1756369841040,-2127.10232856,0.00018848,2]
[381847968,1756369841049,-2347.69071818,0.00018849,2]
[381847970,1756369841058,-2568.27910781,0.0001885,2]
[381847972,1756369841068,-150.84,0.0001885,2]
[381847974,1756369841077,-150.84,0.0001885,2]
[381847976,1756369841087,-150.84,0.0001885,2]
[381847978,1756369841096,-150.84,0.0001885,2]
[381847980,1756369841105,-150.84,0.0001885,2]
[381847982,1756369841115,-1000.0,0.00018853,2]
[381847984,1756369841124,-603.38065453,0.0001886,2]
[381847986,1756369841134,-287007.24600526,0.0001886,2]
[381847988,1756369841143,-151.0,0.0001886,2]
[381847990,1756369841159,-151.0,0.0001886,2]
[381847992,1756369841169,-151.0,0.0001886,2]
[381847994,1756369841178,-151.0,0.0001886,2]
[381847996,1756369841188,-151.0,0.0001886,2]
[381847998,1756369841201,-151.0,0.0001886,2]
[381848000,1756369841210,-151.0,0.0001886,2]
[381848001,1756369841221,-151.0,0.0001886,2]
[381848003,1756369841231,-193.045024,0.0001886,2]
[381848005,1756369841241,-151.0,0.0001886,2]
[381848007,1756369841251,-314.563357,0.0001886,2]
[381848009,1756369841261,-314.563357,0.0001886,2]
[381848011,1756369841270,-314.563357,0.0001886,2]
[381848013,1756369841280,-314.563357,0.0001886,2]
[381848015,1756369841290,-151.0,0.0001886,2]
[381848017,1756369841299,-151.0,0.0001886,2]
[381848019,1756369841310,-151.0,0.0001886,2]
[381848021,1756369841320,-151.0,0.0001886,2]
[381848023,1756369841330,-151.0,0.0001886,2]
[381848025,1756369841340,-1100.0,0.000189,6]
[381848027,1756369841350,-500.0,0.00018973,2]
[381848029,1756369841360,-500.0,0.00018973,2]
[381848031,1756369841369,-501.10794781,0.00018973,2]
[381848033,1756369841379,-294.74950979,0.00018973,2]
[381848035,1756369841389,-500.0,0.00018973,2]
[381848037,1756369841398,-500.0,0.00018973,2]
[381848039,1756369841407,-500.0,0.00018973,2]
[381848041,1756369841417,-500.0,0.00018973,2]
[381848043,1756369841426,-500.0,0.00018973,2]
[381848045,1756369841436,-450.0,0.00018986,2]
[381848047,1756369841445,-150.84,0.0001899,2]
[381848049,1756369841455,-150.84,0.0001899,2]
[381848051,1756369841465,-150.84,0.0001899,2]
[381848053,1756369841475,-1071.31496948,0.00018999,5]
[381848055,1756369841485,-2467.82839895,0.00019,2]
[381848057,1756369841494,-100875.54182454,0.00019,2]
[381848078,1756369841688,-485.48,0.00017999,2]
[381848080,1756369841697,-722.394178,0.0001886,2]
[381848082,1756369841711,-27246.06560168,0.00019,2]
[381848092,1756369841989,320.0,0.00026563,120]
[381848093,1756369842003,-320.0,0.00017708,2]
[381848095,1756369842013,-693.02144192,0.00018,2]
[381848098,1756369842028,-29.37273608,0.00018,2]
[381848100,1756369842038,-485.48,0.00018273,2]
[381848102,1756369842046,-213.10551637,0.00018547,2]
[381848104,1756369842058,-272.37448363,0.00018547,2]
[381848106,1756369842067,-485.48,0.00018821,2]
[381848108,1756369842077,-722.394178,0.0001886,2]
[381848110,1756369842087,-1568.14147088,0.00019,2]
[381848237,1756369843261,-722.394178,0.00018,2]
[381848239,1756369843270,-427.605822,0.00018,2]
[381848530,1756369846038,-294.788356,0.00018,2]
[381848532,1756369846049,-722.394178,0.0001886,2]
[381848534,1756369846059,-722.394178,0.0001886,2]
[381848537,1756369846070,-160.74641439,0.00019,2]
[381848539,1756369846081,-4325.8,0.00019,2]
[381848541,1756369846093,-925.06,0.00019,2]
[381848543,1756369846104,-569.904,0.00019,2]
[381848545,1756369846116,-601.37,0.00019,2]
[381848549,1756369846143,-18383.73303438,0.00019,2]
[381848551,1756369846154,-1489.0,0.00019068,2]
[381848553,1756369846168,-500.0,0.00019073,2]
[381848555,1756369846178,-505.0,0.00019085,2]
[381848557,1756369846187,-150.0,0.00019085,2]
[381848559,1756369846198,-400.0,0.00019095,2]
[381848561,1756369846207,-400.0,0.00019095,2]
[381848563,1756369846217,-570.96,0.00019095,2]
[381848565,1756369846226,-400.0,0.00019095,2]
[381848567,1756369846236,-400.0,0.00019095,2]
[381848569,1756369846245,-400.0,0.00019095,2]
[381848571,1756369846254,-400.0,0.00019095,2]
[381848573,1756369846264,-1077.92,0.00019095,2]
[381848575,1756369846273,-400.0,0.00019095,2]
[381848577,1756369846282,-400.0,0.00019095,2]
[381848579,1756369846291,-400.0,0.00019095,2]
[381848581,1756369846300,-400.0,0.00019095,2]
[381848583,1756369846311,-258.47303505,0.00019095,2]
[381848585,1756369846321,-400.0,0.00019095,2]
[381848587,1756369846330,-510.62,0.00019095,2]
[381848589,1756369846339,-400.0,0.00019095,2]
[381848591,1756369846348,-400.0,0.00019095,2]
[381848593,1756369846357,-400.0,0.00019095,2]
[381848595,1756369846367,-718.39,0.00019095,2]
[381848597,1756369846376,-400.0,0.00019095,2]
[381848599,1756369846385,-638.71,0.00019095,2]
[381848601,1756369846394,-400.0,0.00019095,2]
[381848603,1756369846403,-400.0,0.00019095,2]
[381848605,1756369846413,-400.0,0.00019095,2]
[381848607,1756369846422,-400.0,0.00019095,2]
[381848609,1756369846431,-400.0,0.00019095,2]
[381848611,1756369846440,-400.0,0.00019095,2]
[381848613,1756369846449,-483.22,0.00019095,2]
[381848615,1756369846461,-400.0,0.00019095,2]
[381848617,1756369846470,-434.29,0.00019095,2]
[381848619,1756369846479,-400.0,0.00019095,2]
[381848621,1756369846488,-400.0,0.00019095,2]
[381848623,1756369846497,-400.0,0.00019095,2]
[381848625,1756369846508,-2341.56,0.00019095,2]
[381848627,1756369846517,-182.90913798,0.00019095,2]
[381848629,1756369846526,-400.0,0.00019095,2]
[381848631,1756369846535,-400.0,0.00019095,2]
[381848633,1756369846544,-1134.51,0.00019095,2]
[381848635,1756369846554,-485.48,0.00019095,2]
[381848637,1756369846563,-150.84,0.00019168,2]
[381848639,1756369846574,-151.0,0.00019178,2]
[381848641,1756369846583,-200.43602112,0.00019178,2]
[381848643,1756369846592,-4544.98,0.00019178,2]
[381848645,1756369846601,-824.04702224,0.00019268,2]
[381848647,1756369846611,-500.0,0.00019268,2]
[381848649,1756369846621,-266.72,0.00019273,2]
[381848651,1756369846630,-505.0,0.00019359,2]
[381848652,1756369846640,-214.30459783,0.00019359,2]
[381848654,1756369846650,-400.0,0.00019369,2]
[381848656,1756369846659,-400.0,0.00019369,2]
[381848658,1756369846668,-570.96,0.00019369,2]
[381848660,1756369846678,-400.0,0.00019369,2]
[381848662,1756369846687,-263.97633478,0.00019369,2]
[381848664,1756369846696,-447.989565,0.00019369,2]
[381848666,1756369846706,-400.0,0.00019369,2]
[381848668,1756369846716,-1077.92,0.00019369,2]
[381848670,1756369846727,-400.0,0.00019369,2]
[381848672,1756369846740,-400.0,0.00019369,2]
[381848674,1756369846751,-400.0,0.00019369,2]
[381848676,1756369846762,-400.0,0.00019369,2]
[381848678,1756369846779,-400.0,0.00019369,2]
[381848679,1756369846788,-510.62,0.00019369,2]
[381848681,1756369846797,-528.27661147,0.00019369,2]
[381848683,1756369846812,-400.0,0.00019369,2]
[381848685,1756369846821,-400.0,0.00019369,2]
[381848687,1756369846831,-110.93024934,0.00019369,2]
[381848691,1756369846855,-607.45975066,0.00019369,2]
[381848693,1756369846864,-400.0,0.00019369,2]
[381848695,1756369846873,-638.71,0.00019369,2]
[381848697,1756369846882,-400.0,0.00019369,2]
[381848699,1756369846892,-400.0,0.00019369,2]
[381848701,1756369846901,-400.0,0.00019369,2]
[381848722,1756369847105,-400.0,0.00019369,2]
[381848724,1756369847118,-400.0,0.00019369,2]
[381848726,1756369847127,-400.0,0.00019369,2]
[381848728,1756369847136,-483.22,0.00019369,2]
[381848730,1756369847146,-400.0,0.00019369,2]
[381848732,1756369847156,-434.29,0.00019369,2]
[381848734,1756369847168,-400.0,0.00019369,2]
[381848736,1756369847179,-532.56843427,0.00019369,2]
[381848738,1756369847188,-400.0,0.00019369,2]
[381848740,1756369847198,-2341.56,0.00019369,2]
[381848742,1756369847207,-400.0,0.00019369,2]
[381848744,1756369847217,-400.0,0.00019369,2]
[381848746,1756369847226,-1134.51,0.00019369,2]
[381848748,1756369847235,-485.48,0.00019369,2]
[381848750,1756369847245,-2574.93021261,0.00019433,2]
[381848752,1756369847255,-300.0,0.00019434,3]
[381848754,1756369847264,-150.0,0.00019473,2]
[381848756,1756369847274,-823.90237999,0.00019521,2]
[381848758,1756369847284,-1000.0,0.00019521,2]
[381848760,1756369847294,-248.97637153,0.00019521,2]
[381848762,1756369847303,-1000.0,0.00019521,2]
[381848764,1756369847312,-796.98390811,0.00019567,2]
[381848766,1756369847321,-500.0,0.00019621,2]
[381848768,1756369847331,-505.0,0.00019633,2]
[381848770,1756369847340,-400.0,0.00019643,2]
[381848772,1756369847350,-400.0,0.00019643,2]
[381848774,1756369847359,-570.96,0.00019643,2]
[381848776,1756369847369,-400.0,0.00019643,2]
[381848778,1756369847378,-400.0,0.00019643,2]
[381848780,1756369847388,-1077.92,0.00019643,2]
[381848782,1756369847398,-400.0,0.00019643,2]
[381848783,1756369847407,-400.0,0.00019643,2]
[381848785,1756369847416,-400.0,0.00019643,2]
[381848787,1756369847426,-400.0,0.00019643,2]
[381848789,1756369847435,-400.0,0.00019643,2]
[381848791,1756369847444,-510.62,0.00019643,2]
[381848793,1756369847454,-400.0,0.00019643,2]
[381848795,1756369847463,-400.0,0.00019643,2]
[381848797,1756369847472,-718.39,0.00019643,2]
[381848799,1756369847482,-400.0,0.00019643,2]
[381848801,1756369847491,-638.71,0.00019643,2]
[381848803,1756369847501,-400.0,0.00019643,2]
[381848805,1756369847511,-400.0,0.00019643,2]
[381848807,1756369847520,-400.0,0.00019643,2]
[381848809,1756369847531,-400.0,0.00019643,2]
[381848811,1756369847540,-400.0,0.00019643,2]
[381848813,1756369847550,-400.0,0.00019643,2]
[381848815,1756369847559,-483.22,0.00019643,2]
[381848817,1756369847569,-400.0,0.00019643,2]
[381848819,1756369847578,-434.29,0.00019643,2]
[381848821,1756369847590,-400.0,0.00019643,2]
[381848823,1756369847599,-400.0,0.00019643,2]
[381848825,1756369847608,-1836.29294283,0.00019643,2]
[381851099,1756369908195,850.97291998,0.0003013,120]
[381851100,1756369911830,1019.0,0.0003013,120]
[381851101,1756369915802,295.51874883,0.0003013,120]
[381851103,1756369969629,401.0,0.0003013,120]
[381851105,1756370103152,200.0,0.0003,120]
[381851107,1756370279423,-150.0,0.00013699,2]
[381851111,1756370337896,171.04,0.00029041,120]
[381851112,1756370338127,171.04,0.00029178,120]
[381851113,1756370338541,171.04,0.00029315,120]
[381851114,1756370338658,171.04,0.00029452,120]
[381851115,1756370338877,171.04,0.00029589,120]
[381851116,1756370339140,171.04,0.00029726,120]
[381851117,1756370339375,171.04,0.00029863,120]
[381851118,1756370339631,171.04,0.00029999,120]
[381851119,1756370339887,171.04,0.00030136,120]
[381851120,1756370404356,-3.23,0.00013699,2]
[381851121,1756370404381,-150.0,0.00014199,3]
[381851122,1756370404407,-27.84171743,0.00015068,2]
[381851123,1756370406123,-155.43997735,0.00015068,2]
[381851124,1756370408767,-66.71830522,0.00015068,2]
[381851125,1756370408790,-431.43456065,0.00015068,3]
[381851126,1756370411556,-431.43456065,0.00015068,3]
[381851127,1756370411583,-137.1308787,0.00015068,3]
[381851128,1756370412519,-311.13237351,0.00015068,2]
[381851129,1756370417822,-409.82097998,0.00015068,2]
[381851130,1756370419790,-500.0,0.00015068,2]
[381851131,1756370421764,-478.03248658,0.00015068,2]
[381851132,1756370422263,238.1143,0.00023,30]
[381851133,1756370426488,-309.66494993,0.00015068,2]
[381851134,1756370427248,-8.65079,0.00015068,2]
[381851135,1756370427271,-482.69842,0.00015068,2]
[381851137,1756370583315,-252.14,0.00013699,2]
[381851138,1756370586248,-247.86,0.00013699,2]
[381851140,1756371032232,-183.66586048,0.00016337,2]
[381851141,1756371032242,-116.32413952,0.00016436,2]
[381851142,1756371032392,-1083.67586048,0.00016436,2]
[381851143,1756371032402,-500.0,0.00016436,2]
[381851144,1756371032411,-500.0,0.00016436,2]
[381851145,1756371032421,-629.16423735,0.00016436,2]
[381851146,1756371032430,-500.0,0.00016436,2]
[381851147,1756371032439,-500.0,0.00016436,2]
[381851148,1756371032449,-500.0,0.00016436,2]
[381851149,1756371032459,-254.0,0.00016437,2]
[381851150,1756371032468,-264.2099172,0.00016437,2]
[381851151,1756371032477,-500.0,0.00016437,2]
[381851152,1756371032486,-216.47147597,0.00016437,2]
[381851153,1756371032495,-11368.40262487,0.00016438,2]
[381851154,1756371032510,-2364.34242469,0.00016438,2]
[381851155,1756371032521,-500.0,0.00016438,2]
[381851169,1756371038179,-14773.25495044,0.00016438,2]
[381851170,1756371038189,-500.0,0.00016438,2]
[381851171,1756371038198,-169.72510494,0.00017257,5]
[381851172,1756371038208,-160.0,0.00017363,7]
[381851173,1756371038217,-160.8,0.00017452,2]
[381851174,1756371038227,-9999.99,0.00017452,2]
[381851175,1756371038237,-9999.99,0.00017452,2]
[381851176,1756371038246,-1000.0,0.00017568,2]
[381851177,1756371038255,-150.99,0.00017568,2]
[381851178,1756371038265,-999.99,0.00017568,2]
[381851179,1756371038274,-150.99,0.00017568,2]
[381851180,1756371038283,-738.67,0.00017882,2]
[381851181,1756371038292,-550.0,0.00017897,2]
[381851182,1756371038301,-99505.43,0.00017897,2]
[381851183,1756371038310,-299.99,0.00017897,4]
[381851184,1756371038319,-3329.2999332,0.00017898,2]
[381851185,1756371038329,-302.97,0.00017898,2]
[381851186,1756371038338,-153.93832271,0.00017898,2]
[381851187,1756371038347,-151.0,0.00017988,2]
[381851188,1756371038356,-224.6292763,0.00017998,2]
[381851189,1756371038368,-355.87590338,0.00017998,2]
[381851190,1756371038496,-92.33150454,0.00017998,2]
[381851191,1756371038506,-448.75,0.00017999,2]
[381851192,1756371038515,-500.0,0.00017999,2]
[381851193,1756371038525,-268.22,0.00017999,2]
[381851194,1756371038534,-763.52,0.00017999,2]
[381851195,1756371038543,-400.0,0.00017999,2]
[381851196,1756371038552,-400.0,0.00017999,2]
[381851197,1756371038563,-400.0,0.00017999,2]
[381851198,1756371038572,-400.0,0.00017999,2]
[381851199,1756371038582,-400.0,0.00017999,2]
[381851200,1756371038591,-400.0,0.00017999,2]
[381851201,1756371038600,-520.38304094,0.00017999,2]
[381851202,1756371038610,-400.0,0.00017999,2]
[381851203,1756371038619,-508.86,0.00017999,2]
[381851204,1756371038628,-489.66,0.00017999,2]
[381851205,1756371038639,-400.0,0.00017999,2]
[381851206,1756371038648,-400.0,0.00017999,2]
[381851207,1756371038657,-400.0,0.00017999,2]
[381851208,1756371038667,-704.37,0.00018,2]
[381851209,1756371038676,-1680.0,0.00018052,2]
[381851210,1756371038685,-637.58712656,0.00018173,2]
[381851211,1756371038695,-500.0,0.00018265,2]
[381851212,1756371038703,-763.52,0.00018273,2]
[381851213,1756371038713,-400.0,0.00018273,2]
[381851214,1756371038722,-400.0,0.00018273,2]
[381851215,1756371038732,-400.0,0.00018273,2]
[381851216,1756371038741,-508.86,0.00018273,2]
[381851217,1756371038750,-400.0,0.00018273,2]
[381851218,1756371038759,-151.0,0.00018321,2]
[381851219,1756371038768,-153.93832257,0.00018537,2]
[381851220,1756371038777,-1000.0,0.00018546,2]
[381851221,1756371038787,-763.52,0.00018547,2]
[381851222,1756371038798,-368.93553987,0.00018547,2]
[381851224,1756371038808,-400.0,0.00018547,2]
[381851225,1756371038818,-400.0,0.00018547,2]
[381851227,1756371038827,-508.86,0.00018547,2]
[381851229,1756371038836,-400.0,0.00018547,2]
[381851231,1756371038846,-500.0,0.00018571,2]
[381851233,1756371038857,-2000.0,0.000186,2]
[381851235,1756371038867,-646.65982734,0.00018704,2]
[381851237,1756371038876,-1000.0,0.00018704,2]
[381851239,1756371038888,-1000.0,0.00018704,2]
[381851241,1756371038898,-151.0,0.00018704,2]
[381851243,1756371038908,-300.0,0.00018704,2]
[381851245,1756371038917,-300.0,0.00018704,2]
[381851247,1756371038926,-1000.0,0.00018704,2]
[381851249,1756371038935,-300.0,0.00018704,2]
[381851251,1756371038944,-151.0,0.00018704,2]
[381851253,1756371038954,-300.0,0.00018704,2]
[381851255,1756371038963,-1000.0,0.00018704,2]
[381851257,1756371038972,-151.0,0.00018704,2]
[381851259,1756371038982,-300.0,0.00018704,2]
[381851261,1756371038991,-300.0,0.00018704,2]
[381851263,1756371039000,-1000.0,0.00018704,2]
[381851265,1756371039010,-151.0,0.00018704,2]
[381851267,1756371039019,-300.0,0.00018704,2]
[381851269,1756371039027,-300.0,0.00018704,2]
[381851271,1756371039037,-151.0,0.00018704,2]
[381851273,1756371039046,-300.0,0.00018704,2]
[381851275,1756371039055,-300.0,0.00018704,2]
[381851277,1756371039064,-151.0,0.00018704,2]
[381851279,1756371039073,-1000.0,0.00018704,2]